bitfinex-derivatives/quotes_BTCF0:USTF0_20210705
["timestamp","ask_amount","ask_price","bid_price","bid_amount"]
[1625509393084,1.04430432,33859.0,33842.0,0.12870107]
[1625509393085,0.87040469,33859.0,33843.0,7.21524961]
[1625509393185,1.27525335,33863.0,33858.0,5.1631]
[1625509393186,0.34813776,33862.0,33858.0,5.1631]
[1625509393288,0.34813776,33862.0,33858.0,5.38111]
[1625509393489,0.34813776,33862.0,33859.0,0.00349973]
[1625509393642,0.34813776,33862.0,33859.0,0.06249973]
[1625509393738,0.40513002,33863.0,33859.0,1.56836272]
[1625509394037,0.40513002,33863.0,33860.0,0.00349954]
[1625509394138,0.40513002,33863.0,33860.0,0.06249954]
[1625509394238,0.057,33863.0,33862.0,0.33420703]
[1625509394491,0.057,33863.0,33862.0,1.29650879]
[1625509394588,0.057,33863.0,33862.0,1.35900829]
[1625509395190,0.057,33863.0,33862.0,1.30000829]
[1625509395544,0.057,33863.0,33862.0,1.35900829]
[1625509395943,0.057,33863.0,33862.0,1.02480126]
[1625509396394,0.057,33863.0,33862.0,1.35923569]
[1625509397146,0.057,33866.0,33862.0,1.35923569]
[1625509397395,0.40459335,33866.0,33862.0,1.35923569]
[1625509397596,0.40459335,33866.0,33863.0,0.00349947]
[1625509397697,0.40459335,33866.0,33863.0,0.06249947]
[1625509397796,0.057,33866.0,33863.0,0.059]
[1625509398198,0.40442759,33866.0,33862.0,0.96230176]
[1625509398701,0.92549357,33866.0,33862.0,0.96230176]
[1625509398797,0.92549357,33866.0,33862.0,1.02130176]
[1625509399250,0.057,33866.0,33862.0,1.463907]
[1625509399349,0.057,33866.0,33862.0,1.7983105]
[1625509399551,0.057,33866.0,33862.0,1.8573105]
[1625509399750,0.057,33866.0,33863.0,0.33509447]
[1625509399851,0.057,33866.0,33863.0,0.58331447]
[1625509400152,0.057,33866.0,33863.0,0.24822]
[1625509400454,0.057,33866.0,33863.0,0.64252991]
[1625509401404,0.057,33866.0,33863.0,0.58352991]
[1625509401906,0.057,33866.0,33863.0,0.64252991]
[1625509402307,0.057,33868.0,33863.0,0.64252991]
[1625509402409,0.057,33868.0,33863.0,1.14402838]
[1625509402508,0.057,33868.0,33867.0,0.24057544]
[1625509408267,0.116,33868.0,33867.0,0.24057544]
[1625509408572,0.057,33868.0,33867.0,0.24057544]
[1625509408670,0.116,33868.0,33867.0,0.24057544]
[1625509408772,0.057,33868.0,33867.0,0.24057544]
[1625509409623,0.116,33868.0,33867.0,0.24057544]
[1625509409926,0.057,33868.0,33867.0,0.24057544]
[1625509415491,0.29063,33868.0,33867.0,0.24057544]
[1625509415791,0.34963,33868.0,33867.0,0.24057544]
[1625509416549,0.52310062,33868.0,33867.0,0.24057544]
[1625509416660,0.58210062,33868.0,33867.0,0.24057544]
[1625509416894,0.58210062,33868.0,33862.0,0.48115088]
[1625509416997,0.92870288,33868.0,33862.0,0.48115088]
[1625509417548,0.52042057,33866.0,33862.0,0.48115088]
[1625509417647,0.057,33865.0,33862.0,0.48115088]
[1625509417747,0.116,33865.0,33862.0,0.48115088]
[1625509417848,0.175,33865.0,33862.0,0.48115088]
[1625509418149,0.69548352,33865.0,33862.0,0.48115088]
[1625509418249,0.57748352,33865.0,33862.0,0.48115088]
[1625509418752,0.24057544,33863.0,33862.0,0.48115088]
[1625509418852,0.29757544,33863.0,33862.0,0.48115088]
[1625509419201,0.29757544,33863.0,33862.0,0.48465049]
[1625509420859,0.29757544,33863.0,33862.0,0.54365049]
[1625509421034,0.057,33863.0,33862.0,0.54365049]
[1625509421090,0.24057544,33866.0,33862.0,0.60265049]
[1625509421170,0.24057544,33866.0,33862.0,0.86761049]
[1625509421363,0.24057544,33866.0,33863.0,0.00349915]
[1625509421511,0.24057544,33866.0,33863.0,0.12149915]
[1625509421663,0.24057544,33866.0,33864.0,0.50137512]
[1625509422012,0.24057544,33866.0,33865.0,0.00349904]
[1625509422462,0.24057544,33866.0,33865.0,0.56319211]
[1625509422561,0.24057544,33866.0,33865.0,0.50419211]
[1625509422911,0.24057544,33866.0,33865.0,0.56319211]
[1625509423465,0.24057544,33866.0,33865.0,1.23081703]
[1625509423563,0.29757544,33866.0,33865.0,1.17181703]
[1625509424019,0.29757544,33866.0,33865.0,0.83810855]
[1625509424466,0.29757544,33866.0,33865.0,0.56342261]
[1625509424918,0.29757544,33866.0,33865.0,0.5621809]
[1625509425469,0.29757544,33866.0,33865.0,1.22932793]
[1625509425768,0.29757544,33866.0,33865.0,1.17032793]
[1625509428875,0.29757544,33866.0,33865.0,2.17298671]
[1625509430182,0.29757544,33866.0,33865.0,1.17032793]
[1625509430980,0.29757544,33866.0,33865.0,2.17434788]
[1625509431836,0.29757544,33866.0,33865.0,2.23334788]
[1625509433492,0.24057544,33866.0,33865.0,2.23334788]
[1625509439053,0.24057544,33866.0,33865.0,3.40741411]
[1625509441018,0.057,33869.0,33865.0,3.40741411]
[1625509441105,0.057,33870.0,33868.0,0.48115088]
[1625509441406,0.057,33870.0,33869.0,0.00349864]
[1625509441607,0.057,33870.0,33869.0,0.06249864]
[1625509441706,0.057,33870.0,33869.0,2.25320738]
[1625509442006,0.057,33870.0,33869.0,7.13530738]
[1625509442208,0.057,33870.0,33869.0,8.31447595]
[1625509442709,0.057,33870.0,33869.0,8.25547595]
[1625509442810,0.057,33870.0,33869.0,8.31447595]
[1625509443309,0.24057544,33872.0,33869.0,8.31447595]
[1625509443859,0.29957544,33872.0,33870.0,0.00349835]
[1625509443959,0.059,33872.0,33870.0,0.06249835]
[1625509444059,0.08710983,33874.0,33870.0,0.06249835]
[1625509444160,0.14610983,33874.0,33870.0,0.40079835]
[1625509444261,0.08710983,33874.0,33871.0,2.18664978]
[1625509444362,0.08710983,33874.0,33871.0,2.19014776]
[1625509444465,0.08710983,33874.0,33871.0,2.24914776]
[1625509444660,0.08710983,33874.0,33872.0,0.00349795]
[1625509444811,0.52296347,33875.0,33872.0,0.00349795]
[1625509444812,0.001,33875.0,33873.0,4.69933035]
[1625509445009,0.059,33874.0,33873.0,4.75833035]
[1625509445111,0.001,33875.0,33874.0,0.00349784]
[1625509445313,0.001,33875.0,33874.0,0.06249784]
[1625509445661,0.001,33875.0,33874.0,4.74920112]
[1625509446566,0.06,33875.0,33874.0,4.74920112]
[1625509446663,0.001,33875.0,33874.0,4.74920112]
[1625509447114,0.06,33875.0,33874.0,4.98977656]
[1625509449273,0.001,33875.0,33874.0,4.98977656]
[1625509449675,0.06,33875.0,33874.0,4.98977656]
[1625509451080,0.001,33875.0,33874.0,4.98977656]
[1625509451481,0.06,33875.0,33874.0,4.98977656]
[1625509451680,0.06,33875.0,33874.0,6.49318818]
[1625509452230,0.06,33875.0,33874.0,4.98977656]
[1625509452331,0.3938,33875.0,33874.0,4.98977656]
[1625509452433,0.4508,33875.0,33874.0,4.98977656]
[1625509452530,0.4508,33875.0,33874.0,4.93077656]
[1625509452985,0.3938,33875.0,33874.0,4.93077656]
[1625509453101,0.3938,33875.0,33874.0,1.4157491]
[1625509453195,0.3938,33875.0,33874.0,1.4747491]
[1625509453385,0.3938,33875.0,33874.0,3.58787084]
[1625509453834,0.4508,33875.0,33874.0,3.58787084]
[1625509454039,0.4508,33875.0,33874.0,3.584373]
[1625509454141,0.4508,33875.0,33874.0,2.41476899]
[1625509454241,0.4508,33875.0,33874.0,2.41826738]
[1625509454646,0.71206427,33875.0,33874.0,0.74622061]
[1625509455093,0.4508,33875.0,33874.0,2.41706122]
[1625509456144,0.4508,33875.0,33874.0,1.41455685]
[1625509456895,0.53794797,33875.0,33874.0,1.41455685]
[1625509457147,0.77852341,33875.0,33874.0,1.41105846]
[1625509457448,1.30071933,33875.0,33874.0,1.07688214]
[1625509457698,1.30071933,33875.0,33874.0,1.08038041]
[1625509457900,0.77852341,33875.0,33874.0,1.41445151]
[1625509458398,0.95265263,33875.0,33874.0,0.74622049]
[1625509458849,0.95265263,33875.0,33874.0,0.50564505]
[1625509458951,1.01165263,33875.0,33874.0,0.50564505]
[1625509459051,1.01165263,33875.0,33874.0,0.50214678]
[1625509459151,1.25222807,33875.0,33874.0,0.50214678]
[1625509459553,1.25222807,33875.0,33873.0,0.49146541]
[1625509459554,2.20904908,33875.0,33873.0,0.49146541]
[1625509460204,2.20904908,33875.0,33873.0,0.24057544]
[1625509460205,1.21822675,33874.0,33873.0,0.24057544]
[1625509460303,1.27522675,33874.0,33873.0,0.24057544]
[1625509460403,1.39322675,33874.0,33873.0,0.24057544]
[1625509460706,2.43730272,33874.0,33873.0,0.24057544]
[1625509460955,2.43730272,33874.0,33870.0,0.49345002]
[1625509461057,0.059,33873.0,33870.0,0.58606541]
[1625509461157,0.24057544,33871.0,33870.0,0.25117089]
[1625509461257,0.53815088,33871.0,33870.0,0.02686541]
[1625509461357,3.61473408,33871.0,33865.0,0.67120432]
[1625509461656,3.61473408,33871.0,33866.0,0.00349918]
[1625509461859,0.69616525,33868.0,33866.0,0.00349918]
[1625509461957,0.057,33867.0,33866.0,0.00349918]
[1625509462057,0.4603,33867.0,33866.0,0.00349918]
[1625509462459,1.15651253,33867.0,33866.0,0.00349918]
[1625509462708,1.15651253,33867.0,33865.0,0.0034992]
[1625509462909,0.4603,33867.0,33865.0,0.67637176]
[1625509463009,0.4603,33867.0,33866.0,0.00349922]
[1625509463209,0.70087544,33867.0,33866.0,0.00349922]
[1625509463508,0.70087544,33867.0,33865.0,0.67287256]
[1625509463760,1.3970414,33867.0,33864.0,0.67239451]
[1625509464774,1.3970414,33867.0,33863.0,0.91233883]
[1625509465164,0.24057544,33864.0,33863.0,0.91233883]
[1625509465267,0.29757544,33864.0,33863.0,0.91233883]
[1625509465465,0.41557544,33864.0,33863.0,0.91233883]
[1625509465668,0.41557544,33864.0,33863.0,0.91583812]
[1625509465867,0.41557544,33864.0,33863.0,0.91233883]
[1625509466521,0.41557544,33864.0,33863.0,0.24057544]
[1625509469523,0.41557544,33864.0,33863.0,0.9123923]
[1625509470123,0.35657544,33864.0,33863.0,0.9123923]
[1625509470324,0.41557544,33864.0,33863.0,0.9123923]
[1625509470425,0.35657544,33864.0,33863.0,0.24057544]
[1625509470878,0.35657544,33864.0,33863.0,0.9121167]
[1625509471181,0.41557544,33864.0,33863.0,0.9121167]
[1625509471327,0.35657544,33864.0,33863.0,0.9121167]
[1625509472079,0.41557544,33864.0,33863.0,0.9121167]
[1625509472180,0.35657544,33864.0,33863.0,0.9121167]
[1625509472930,0.29757544,33864.0,33863.0,1.91878151]
[1625509473029,0.24057544,33864.0,33863.0,1.91878151]
[1625509473432,0.29957544,33864.0,33863.0,1.91878151]
[1625509473533,0.24057544,33864.0,33863.0,1.91878151]
[1625509474135,0.29757544,33864.0,33863.0,1.91878151]
[1625509474384,0.35657544,33864.0,33863.0,1.91878151]
[1625509474482,0.29757544,33864.0,33863.0,1.91878151]
[1625509474631,0.35657544,33864.0,33863.0,1.91878151]
[1625509474883,0.35657544,33864.0,33863.0,0.9121167]
[1625509475335,0.29757544,33864.0,33863.0,0.9121167]
[1625509475438,0.29757544,33864.0,33863.0,1.91862494]
[1625509476546,0.29757544,33864.0,33863.0,3.09200328]
[1625509476643,0.29757544,33864.0,33863.0,3.09550241]
[1625509476792,0.24057544,33864.0,33863.0,3.09550241]
[1625509477795,0.29957544,33864.0,33863.0,3.09550241]
[1625509478294,0.24057544,33864.0,33863.0,3.09550241]
[1625509480299,0.29757544,33864.0,33863.0,3.09550241]
[1625509480610,0.24057544,33864.0,33863.0,3.15450241]
[1625509480733,0.24057544,33867.0,33863.0,3.45663241]
[1625509480916,0.24057544,33867.0,33863.0,3.51563241]
[1625509481051,0.24057544,33867.0,33864.0,0.00349873]
[1625509481249,0.24057544,33867.0,33864.0,0.06249873]
[1625509481348,0.24057544,33867.0,33866.0,0.29957544]
[1625509481598,0.24057544,33867.0,33866.0,0.30307401]
[1625509481710,0.24057544,33867.0,33866.0,4.49318247]
[1625509482001,0.24057544,33867.0,33866.0,8.03788247]
[1625509482651,0.24057544,33867.0,33866.0,9.54714043]
[1625509483001,0.24057544,33867.0,33866.0,8.03788247]
[1625509483852,0.057,33874.0,33866.0,8.03788247]
[1625509484155,0.057,33874.0,33867.0,0.00349826]
[1625509484304,0.057,33874.0,33867.0,0.06249826]
[1625509484405,0.057,33874.0,33870.0,2.86130982]
[1625509484504,0.057,33874.0,33870.0,3.15779982]
[1625509484656,0.057,33874.0,33870.0,3.16129808]
[1625509485309,0.057,33874.0,33870.0,3.40187352]
[1625509485862,0.69730624,33875.0,33870.0,3.40187352]
[1625509486260,0.69730624,33875.0,33871.0,0.00349806]
[1625509486361,0.69730624,33875.0,33871.0,0.06249806]
[1625509486461,0.69730624,33875.0,33871.0,0.12149806]
[1625509486562,0.001,33875.0,33874.0,1.6845039]
[1625509486761,0.001,33875.0,33874.0,1.7435039]
[1625509487063,0.001,33875.0,33874.0,4.27126487]
[1625509487314,0.001,33875.0,33874.0,4.75241575]
[1625509487414,0.001,33875.0,33874.0,4.69341575]
[1625509487513,0.001,33875.0,33874.0,4.75241575]
[1625509487714,0.001,33875.0,33874.0,4.69341575]
[1625509489121,0.001,33875.0,33874.0,3.34714196]
[1625509489519,0.001,33875.0,33874.0,3.40614196]
[1625509489821,0.001,33875.0,33874.0,4.74942124]
[1625509490221,0.001,33875.0,33874.0,4.69042124]
[1625509490328,0.001,33875.0,33874.0,4.74942124]
[1625509491426,0.001,33875.0,33874.0,4.74592362]
[1625509491623,0.001,33875.0,33874.0,4.74942114]
[1625509492526,0.001,33875.0,33874.0,4.80842114]
[1625509495282,0.001,33875.0,33874.0,6.3152899]
[1625509495731,0.001,33875.0,33874.0,4.80842114]
[1625509497436,0.001,33875.0,33874.0,6.31208778]
[1625509498139,0.001,33875.0,33874.0,4.80842114]
[1625509498337,0.001,33875.0,33874.0,4.80492362]
[1625509498538,0.001,33875.0,33874.0,4.80842108]
[1625509498838,0.001,33875.0,33874.0,6.31114296]
[1625509499839,0.001,33875.0,33874.0,4.80842108]
[1625509500442,0.001,33875.0,33874.0,4.89612108]
[1625509500538,0.5479074,33886.0,33874.0,5.60678931]
[1625509500633,1.00128357,33887.0,33876.0,0.059]
[1625509500803,0.95408357,33887.0,33876.0,0.118]
[1625509500902,0.49498357,33887.0,33877.0,0.51064587]
[1625509500992,0.941,33903.0,33877.0,0.51064587]
[1625509500993,0.99613785,33894.0,33885.0,2.16697331]
[1625509501100,0.99613785,33894.0,33886.0,3.5816296]
[1625509501300,0.99613785,33894.0,33887.0,0.01062537]
[1625509501399,0.88213785,33894.0,33887.0,0.5141217]
[1625509501576,0.941,33903.0,33893.0,0.96230176]
[1625509501649,0.941,33903.0,33893.0,1.21583176]
[1625509501751,1.21618515,33905.0,33893.0,1.21583176]
[1625509501860,1.21618515,33905.0,33893.0,1.71583176]
[1625509501950,1.21618515,33905.0,33894.0,0.00349594]
[1625509502261,0.25128515,33905.0,33898.0,0.4128]
[1625509502408,0.001,33906.0,33899.0,1.66209516]
[1625509502457,1.01303245,33910.0,33899.0,1.66209516]
[1625509502564,1.01303245,33910.0,33900.0,0.2]
[1625509502651,1.01303245,33910.0,33900.0,0.45938468]
[1625509502772,1.00303245,33910.0,33901.0,0.5]
[1625509502877,0.96183245,33910.0,33902.0,0.01052815]
[1625509502954,1.73711477,33921.0,33902.0,0.01052815]
[1625509502955,0.29757544,33918.0,33904.0,1.32038109]
[1625509503069,0.057,33918.0,33905.0,0.5]
[1625509503161,1.38568318,33925.0,33909.0,4.6016]
[1625509503256,1.38568318,33925.0,33909.0,4.93013]
[1625509503351,1.38568318,33925.0,33909.0,5.43013]
[1625509503553,0.9737,33926.0,33910.0,0.00349418]
[1625509503653,0.059,33925.0,33910.0,0.00349418]
[1625509503755,0.059,33925.0,33910.0,0.06249418]
[1625509503954,0.057,33925.0,33910.0,0.06249418]
[1625509504057,0.057,33925.0,33911.0,0.00349414]
[1625509504257,0.24057544,33924.0,33922.0,0.24057544]
[1625509504354,0.057,33923.0,33922.0,0.24057544]
[1625509504455,0.9737,33926.0,33922.0,0.24057544]
[1625509505055,0.057,33925.0,33922.0,0.24057544]
[1625509505255,0.057,33925.0,33922.0,0.35857544]
[1625509505560,0.057,33925.0,33923.0,0.2]
[1625509505659,1.3818383,33937.0,33924.0,0.5]
[1625509505762,1.23468406,33937.0,33924.0,0.5]
[1625509505860,1.22438406,33937.0,33928.0,0.8876]
[1625509505965,1.11638406,33937.0,33929.0,0.5]
[1625509506059,0.9142,33957.0,33929.0,0.5]
[1625509506060,1.24802014,33946.0,33929.0,0.5]
[1625509506159,1.23917014,33946.0,33929.0,0.559]
[1625509506261,1.23917014,33946.0,33936.0,4.7402]
[1625509506363,1.23917014,33946.0,33945.0,0.96230176]
[1625509506461,1.04717014,33946.0,33945.0,1.19266176]
[1625509506560,0.93207014,33946.0,33945.0,1.19266176]
[1625509506660,0.41207014,33946.0,33945.0,1.25166176]
[1625509506763,0.9142,33957.0,33945.0,1.25166176]
[1625509507063,0.9732,33957.0,33945.0,1.25166176]
[1625509507161,0.057,33956.0,33945.0,1.25166176]
[1625509507266,0.9732,33957.0,33945.0,1.19266176]
[1625509507412,0.059,33956.0,33945.0,1.25166176]
[1625509507514,1.54547873,33972.0,33953.0,0.2254]
[1625509507617,0.059,33956.0,33955.0,1.57422]
[1625509507716,0.059,33956.0,33955.0,1.79962]
[1625509508296,1.54547873,33972.0,33955.0,1.04492046]
[1625509508327,1.54542928,33975.0,33955.0,0.81952046]
[1625509508373,1.54542928,33975.0,33972.0,0.4128]
[1625509508431,1.60442928,33975.0,33972.0,0.4718]
[1625509508457,1.44921238,33975.0,33972.0,0.71899]
[1625509508492,1.39021238,33975.0,33972.0,0.71899]
[1625509508518,1.35861238,33975.0,33974.0,0.96230176]
[1625509508538,0.92761238,33975.0,33974.0,1.84990176]
[1625509508622,1.54409282,33998.0,33974.0,2.58550176]
[1625509508722,0.0883,33997.0,33986.0,0.22563255]
[1625509508817,1.54409282,33998.0,33997.0,2.51984669]
[1625509509017,1.04349282,33998.0,33997.0,1.54837]
[1625509509117,0.54339282,33998.0,33997.0,2.04837]
[1625509509430,1.53342624,34015.0,33997.0,1.54837]
[1625509509462,1.53342624,34015.0,33997.0,6.15327]
[1625509509602,1.53342624,34015.0,34014.0,0.8876]
[1625509509630,1.25842624,34015.0,34014.0,1.84074]
[1625509509721,1.45178801,34021.0,34014.0,1.91464046]
[1625509509823,1.42678801,34021.0,34020.0,0.22563255]
[1625509509922,1.23078801,34021.0,34020.0,0.22563255]
[1625509510022,1.01888801,34021.0,34020.0,0.22563255]
[1625509510121,2.3850647,34032.0,34021.0,0.059]
[1625509510242,1.70234736,34038.0,34021.0,0.29973]
[1625509510334,1.70234736,34038.0,34036.0,0.22563255]
[1625509510524,1.65124736,34038.0,34037.0,0.96230176]
[1625509510637,1.38564736,34038.0,34037.0,0.96230176]
[1625509510734,0.42894736,34038.0,34037.0,1.46230176]
[1625509510829,0.25354736,34038.0,34037.0,1.46230176]
[1625509510926,1.94171201,34069.0,34037.0,1.90495476]
[1625509511024,1.70113657,34069.0,34052.0,0.22563255]
[1625509511127,1.70113657,34069.0,34062.0,1.3004]
[1625509511227,1.70113657,34069.0,34062.0,1.62878]
[1625509511332,1.70113657,34069.0,34068.0,1.21944669]
[1625509511429,1.70113657,34069.0,34068.0,1.14554623]
[1625509511534,1.68256181,34091.0,34068.0,0.059]
[1625509511629,1.68256181,34091.0,34068.0,0.118]
[1625509511630,0.057,34089.0,34068.0,0.118]
[1625509511727,1.68256181,34091.0,34068.0,0.118]
[1625509511927,0.20188723,34097.0,34068.0,0.1495]
[1625509512323,0.059,34091.0,34068.0,0.0905]
[1625509512356,0.059,34091.0,34068.0,0.0315]
[1625509512381,0.059,34091.0,34068.0,0.0905]
[1625509512456,0.96230176,34069.0,34068.0,0.0905]
[1625509512846,0.90330176,34069.0,34051.0,0.24057544]
[1625509512969,0.90430176,34069.0,34051.0,0.24057544]
[1625509513058,0.90430176,34069.0,34051.0,0.29957544]
[1625509513152,0.90430176,34069.0,34051.0,0.24057544]
[1625509513253,0.96330176,34069.0,34051.0,0.24057544]
[1625509513550,0.90430176,34069.0,34051.0,0.24057544]
[1625509513748,0.96330176,34069.0,34051.0,0.24057544]
[1625509514057,0.96330176,34069.0,34037.0,0.48115088]
[1625509514237,0.057,34068.0,34037.0,0.54015088]
[1625509514430,0.24057544,34049.0,34048.0,0.24057544]
[1625509514530,0.29957544,34049.0,34048.0,0.24057544]
[1625509515087,0.24057544,34049.0,34048.0,0.24057544]
[1625509515214,0.29957544,34049.0,34048.0,0.24057544]
[1625509515292,0.29957544,34049.0,34044.0,0.24057544]
[1625509516381,0.24057544,34045.0,34044.0,0.24057544]
[1625509516794,0.29957544,34045.0,34044.0,0.24057544]
[1625509516901,0.29957544,34045.0,34037.0,0.48115088]
[1625509516981,0.29957544,34045.0,33975.0,0.01115]
[1625509517082,0.29957544,34045.0,34004.0,1.3004]
[1625509517183,0.057,34044.0,34004.0,1.3004]
[1625509517484,0.057,34044.0,34004.0,1.3594]
[1625509517583,0.059,34044.0,34004.0,1.3594]
[1625509517685,0.059,34044.0,34007.0,5.061]
[1625509517884,0.059,34044.0,34007.0,5.33692]
[1625509517986,0.059,34044.0,34007.0,5.39592]
[1625509518088,0.059,34044.0,34008.0,0.430982]
[1625509518188,0.05785,34044.0,34008.0,0.430982]
[1625509518287,0.05785,34044.0,34008.0,0.489982]
[1625509518386,0.24057544,34033.0,34032.0,0.24057544]
[1625509518686,0.29957544,34033.0,34032.0,0.24057544]
[1625509519449,0.29957544,34033.0,34028.0,0.24057544]
[1625509519596,0.24057544,34033.0,33954.0,1.51084146]
[1625509519638,0.29957544,34033.0,33954.0,1.51084146]
[1625509519737,0.29957544,34033.0,34007.0,0.059]
[1625509520437,0.24057544,34021.0,34020.0,0.24057544]
[1625509520542,0.46008544,34021.0,34020.0,0.24057544]
[1625509520737,0.46008544,34021.0,34020.0,0.29957544]
[1625509521038,0.21951,34021.0,34020.0,0.29957544]
[1625509521238,0.17611,34021.0,34020.0,0.29957544]
[1625509521337,0.14681,34021.0,34020.0,0.29957544]
[1625509521449,0.14681,34021.0,34020.0,0.24057544]
[1625509521547,0.24057544,34028.0,34020.0,0.24057544]
[1625509521654,0.24057544,34028.0,34020.0,0.29957544]
[1625509521740,0.29957544,34028.0,34020.0,0.29957544]
[1625509522067,0.12807544,34028.0,34020.0,0.29957544]
[1625509522445,0.18707544,34028.0,34027.0,0.48115088]
[1625509523167,0.12807544,34028.0,34020.0,0.24057544]
[1625509523256,0.45971544,34028.0,34020.0,0.24057544]
[1625509523556,0.45971544,34028.0,34017.0,0.24057544]
[1625509524246,0.45971544,34028.0,33969.0,4.5906]
[1625509524347,0.057,34027.0,33976.0,1.8884]
[1625509524447,0.24057544,33997.0,33995.0,0.24057544]
[1625509524545,0.54064544,33997.0,33995.0,0.24057544]
[1625509525247,0.54064544,33997.0,33985.0,0.24057544]
[1625509525646,0.54064544,33997.0,33985.0,0.29957544]
[1625509526314,0.60064544,33997.0,33985.0,0.24057544]
[1625509526502,0.50783544,33986.0,33985.0,0.29957544]
[1625509526612,0.50783544,33986.0,33985.0,0.24057544]
[1625509526712,0.50783544,33986.0,33985.0,0.29957544]
[1625509526804,0.46443544,33986.0,33985.0,0.24057544]
[1625509526901,0.46443544,33986.0,33985.0,0.29957544]
[1625509528051,0.24057544,33988.0,33985.0,0.29957544]
[1625509528456,0.24057544,33988.0,33986.0,0.24057544]
[1625509528556,0.24057544,33988.0,33986.0,0.29957544]
[1625509528957,0.24057544,33988.0,33986.0,0.24057544]
[1625509529057,0.24057544,33988.0,33986.0,0.29957544]
[1625509529257,0.24057544,33988.0,33986.0,0.24057544]
[1625509529360,0.24057544,33988.0,33986.0,0.29957544]
[1625509529560,0.24157544,33997.0,33986.0,0.29957544]
[1625509530509,0.24157544,33997.0,33996.0,0.48115088]
[1625509530610,0.24157544,33997.0,33996.0,0.80713088]
[1625509530710,0.24157544,33997.0,33996.0,0.92513088]
[1625509530922,0.24157544,33997.0,33996.0,0.86613088]
[1625509531017,0.23677544,33997.0,33996.0,0.86613088]
[1625509531861,0.23677544,33997.0,33996.0,0.54015088]
[1625509532097,0.29577544,33997.0,33996.0,0.54015088]
[1625509533216,0.23677544,33997.0,33996.0,0.54015088]
[1625509533523,0.29577544,33997.0,33996.0,0.54015088]
[1625509534168,0.29577544,33997.0,33996.0,0.52015088]
[1625509534371,0.29577544,33997.0,33996.0,0.80535088]
[1625509534767,0.23677544,33997.0,33996.0,0.80535088]
[1625509535671,0.23677544,33997.0,33996.0,0.80883609]
[1625509536322,0.001,33997.0,33996.0,0.80883609]
[1625509536475,0.001,33997.0,33996.0,1.04941153]
[1625509536573,0.24057544,34001.0,33996.0,1.04941153]
[1625509536675,0.29957544,34001.0,33996.0,1.04941153]
[1625509537024,0.29957544,34001.0,33997.0,0.00348523]
[1625509537227,0.29957544,34001.0,33997.0,0.06248523]
[1625509537529,0.29957544,34001.0,33997.0,0.059]
[1625509537775,0.29957544,34001.0,33998.0,0.00348531]
[1625509537877,0.29957544,34001.0,33998.0,0.06248531]
[1625509538327,0.29957544,34001.0,33999.0,0.00348534]
[1625509538545,0.29957544,34001.0,34000.0,0.24057544]
[1625509538926,0.29957544,34001.0,34000.0,0.24406125]
[1625509539429,0.29957544,34001.0,34000.0,0.00348581]
[1625509539679,0.29957544,34001.0,33997.0,0.00348616]
[1625509539782,0.54693544,34001.0,33997.0,0.00348616]
[1625509540482,0.24057544,33998.0,33997.0,0.00348616]
[1625509540681,0.29957544,33998.0,33997.0,0.00348616]
[1625509542133,0.29957544,33998.0,33997.0,0.06248616]
[1625509544644,0.24057544,33998.0,33997.0,0.06248616]
[1625509544744,0.29957544,33998.0,33997.0,0.06248616]
[1625509545043,0.24057544,33998.0,33997.0,0.06248616]
[1625509545143,0.24057544,34001.0,33997.0,0.06248616]
[1625509545344,0.29957544,34001.0,33997.0,0.06248616]
[1625509545545,0.29957544,34001.0,33998.0,0.00348584]
[1625509545647,0.29957544,34001.0,33998.0,0.06248584]
[1625509546045,0.29957544,34001.0,33999.0,0.01219967]
[1625509546146,0.29957544,34001.0,33999.0,0.07119967]
[1625509546499,0.059,34001.0,34000.0,0.24057544]
[1625509546603,0.059,34001.0,34000.0,0.07119944]
[1625509548557,0.29957544,34001.0,34000.0,0.07119944]
[1625509550262,0.24057544,34001.0,34000.0,0.07119944]
[1625509551615,0.59120544,34001.0,34000.0,0.07119944]
[1625509551814,0.59120544,34001.0,34000.0,0.01219944]
[1625509552015,0.59120544,34001.0,34000.0,0.07119944]
[1625509553419,0.59120544,34001.0,34000.0,0.01219944]
[1625509553655,0.59120544,34001.0,33993.0,0.01742899]
[1625509553723,0.59120544,34001.0,33985.0,0.24057544]
[1625509553873,0.59120544,34001.0,33974.0,0.02614477]
[1625509553927,0.65020544,34001.0,33996.0,0.01220254]
[1625509554148,0.9512,34000.0,33968.0,0.02963794]
[1625509554342,1.0692,34000.0,33968.0,0.14763794]
[1625509554431,1.0692,34000.0,33997.0,0.01220443]
[1625509554617,0.04679557,33997.0,33977.0,0.24057544]
[1625509554834,0.10579557,33997.0,33977.0,0.29957544]
[1625509554917,0.10579557,33997.0,33978.0,0.01220507]
[1625509555019,0.10579557,33997.0,33978.0,0.10070507]
[1625509555118,0.10579557,33997.0,33978.0,0.07120507]
[1625509555469,0.10579557,33997.0,33979.0,0.01220537]
[1625509555681,0.057,33996.0,33979.0,0.07120537]
[1625509555768,0.116,33996.0,33979.0,0.07120537]
[1625509556018,0.059,33996.0,33980.0,0.01220498]
[1625509556218,0.059,33996.0,33980.0,0.32225498]
[1625509556420,0.48115088,33998.0,33980.0,0.32225498]
[1625509556521,0.059,33996.0,33981.0,0.01220355]
[1625509556619,0.24057544,33985.0,33984.0,0.24057544]
[1625509556821,0.24057544,33985.0,33984.0,0.29957544]
[1625509556919,0.24057544,33985.0,33984.0,0.31177829]
[1625509557272,0.24057544,33985.0,33984.0,0.25277829]
[1625509557472,0.29957544,33985.0,33984.0,0.25277829]
[1625509557671,0.24057544,33985.0,33984.0,0.25277829]
[1625509557772,0.24057544,33985.0,33984.0,0.31177829]
[1625509557773,0.29957544,33985.0,33984.0,0.31177829]
[1625509558275,0.24057544,33985.0,33984.0,0.31177829]
[1625509558625,0.48115088,33985.0,33984.0,0.31177829]
[1625509558880,0.48115088,33985.0,33984.0,0.37077829]
[1625509559076,0.48115088,33985.0,33984.0,0.31177829]
[1625509559186,0.24057544,33992.0,33984.0,0.37077829]
[1625509559283,0.24057544,33992.0,33985.0,0.059]
[1625509559377,0.24057544,33992.0,33985.0,0.29229909]
[1625509559479,0.24057544,33992.0,33985.0,0.118]
[1625509559578,0.24057544,33992.0,33986.0,0.01220034]
[1625509559677,0.24057544,33992.0,33986.0,0.07120034]
[1625509559777,0.24057544,33992.0,33986.0,0.13020034]
[1625509559879,0.18157544,33992.0,33986.0,0.07120034]
[1625509559983,0.18157544,33992.0,33986.0,0.13020034]
[1625509560130,0.24057544,33998.0,33986.0,0.13020034]